bitfinex-derivatives/quotes_SOLF0:USTF0_20250411
["timestamp","ask_amount","ask_price","bid_price","bid_amount"]
[1744368934464,0.05494294,118.75,118.72,0.05818606]
[1744368935566,8.4272,118.74,118.72,0.05818606]
[1744368939271,8.50597588,118.74,118.72,0.05818606]
[1744368939472,8.50597588,118.73,118.72,0.05818606]
[1744368940566,8.50597588,118.73,118.7,0.67832]
[1744368940775,8.50597588,118.71,118.7,0.67832]
[1744368941373,4.2543,118.74,118.7,0.67832]
[1744368941668,10.5414,118.74,118.71,8.4282]
[1744368941867,10.5414,118.74,118.71,8.48315521]
[1744368941868,0.05782479,118.73,118.71,8.48315521]
[1744368942668,0.05782479,118.73,118.72,8.428]
[1744368946674,0.05782479,118.73,118.72,45.368]
[1744368956180,2.479e-05,118.73,118.72,45.368]
[1744368956379,4.2474,118.8,118.77,8.4245]
[1744368956876,8.4234,118.79,118.77,8.4245]
[1744368957677,8.48171013,118.79,118.77,8.4862869]
[1744368958080,0.05831013,118.79,118.78,8.4238]
[1744368959383,0.05831013,118.79,118.77,8.4858869]
[1744368959680,8.48141013,118.79,118.77,0.0617869]
[1744368960581,8.48141013,118.79,118.77,8.4861869]
[1744368961274,16.97986988,118.79,118.77,8.4861869]
[1744368961982,16.97986988,118.79,118.77,0.0617869]
[1744368962290,16.92225975,118.78,118.77,0.0617869]
[1744368962780,8.4255,118.76,118.71,8.49845975]
[1744368962982,8.49845975,118.76,118.71,8.49845975]
[1744368963282,8.49845975,118.75,118.71,8.428]
[1744368963683,8.4269,118.74,118.72,8.4278]
[1744368963883,16.98891786,118.74,118.72,0.06035685]
[1744368964080,8.56201786,118.74,118.72,0.06035685]
[1744368964381,16.98931786,118.74,118.72,0.06035685]
[1744368964584,8.56201786,118.74,118.72,0.06035685]
[1744368964882,8.4273,118.73,118.72,0.06035685]
[1744368965383,16.92575975,118.73,118.72,0.06035685]
[1744368972689,16.98861786,118.74,118.72,0.06035685]
[1744368972885,8.49015811,118.74,118.72,0.06035685]
[1744368973085,0.06355811,118.74,118.72,8.48805685]
[1744368973788,0.06355811,118.74,118.72,0.06035685]
[1744368975296,8.49015811,118.74,118.72,8.48835685]
[1744368975590,8.56201786,118.74,118.72,0.06035685]
[1744368975886,16.92575975,118.73,118.72,0.06035685]
[1744368977087,8.49845975,118.73,118.72,0.06035685]
[1744368977292,45.42201786,118.74,118.72,0.06035685]
[1744368977693,53.84901786,118.74,118.72,0.06035685]
[1744368978092,8.49845975,118.73,118.72,0.06035685]
[1744368978295,16.92575975,118.73,118.72,0.06035685]
[1744368978489,8.49845975,118.73,118.72,0.06035685]
[1744368978693,45.42201786,118.74,118.72,0.06035685]
[1744368979586,45.42201786,118.74,118.72,8.48825685]
[1744368980787,8.49845975,118.73,118.72,0.06035685]
[1744368981195,16.92575975,118.73,118.72,0.06035685]
[1744368982088,8.49845975,118.73,118.72,0.06035685]
[1744368982489,45.42201786,118.74,118.72,8.48765685]
[1744368983196,53.84861786,118.74,118.72,8.48765685]
[1744368983390,8.49845975,118.73,118.72,8.48765685]
[1744368983695,8.49845975,118.73,118.72,0.06035685]
[1744368986195,8.49845975,118.73,118.72,8.48835685]
[1744368986794,45.42201786,118.74,118.72,8.48835685]
[1744368988291,8.49845975,118.73,118.72,8.48835685]
[1744368990098,36.92355811,118.74,118.73,8.4273]
[1744368990397,45.42201786,118.74,118.72,0.06035685]
[1744368990595,8.49845975,118.73,118.72,0.06035685]
[1744368991400,16.92575975,118.73,118.72,0.06035685]
[1744368992798,8.56201786,118.74,118.72,8.48835685]
[1744368993100,0.06355811,118.74,118.72,0.06035685]
[1744368993700,0.06355811,118.74,118.72,8.48795685]
[1744368994806,0.06355811,118.74,118.73,8.4273]
[1744368995906,0.06355811,118.74,118.72,8.48795685]
[1744368996304,8.56201786,118.74,118.72,8.48795685]
[1744368997707,0.06355811,118.74,118.72,8.48795685]
[1744368998004,8.56201786,118.74,118.72,8.48795685]
[1744369001410,16.98861786,118.74,118.72,8.48795685]
[1744369002813,16.92575975,118.73,118.72,0.06035685]
[1744369003010,8.49845975,118.73,118.7,0.67832]
[1744369003311,8.49845975,118.71,118.7,0.67832]
[1744369003506,16.92715975,118.71,118.7,0.67832]
[1744369004408,45.35845975,118.72,118.7,9.10752]
[1744369004912,45.35845975,118.72,118.71,8.4287]
[1744369004913,36.86,118.72,118.71,8.4287]
[1744369006110,36.86,118.72,118.7,0.67832]
[1744369006307,36.86,118.72,118.7,9.10732]
[1744369006910,45.35845975,118.72,118.7,0.67832]
[1744369007916,8.4287,118.71,118.7,0.67832]
[1744369008615,16.92715975,118.71,118.7,0.67832]
[1744369011212,45.2885,118.72,118.7,9.10772]
[1744369011818,8.4287,118.71,118.7,0.67832]
[1744369012823,45.2885,118.72,118.7,9.10762]
[1744369016126,53.78695975,118.72,118.7,0.67832]
[1744369017114,53.78695975,118.72,118.7,9.10742]
[1744369017519,53.78695975,118.72,118.7,0.67832]
[1744369017520,36.86,118.72,118.7,0.67832]
[1744369017726,36.86,118.72,118.71,8.4287]
[1744369017928,36.86,118.72,118.7,0.67832]
[1744369018126,45.288,118.72,118.7,0.67832]
[1744369018625,8.428,118.72,118.7,9.10742]
[1744369018829,16.92615975,118.73,118.7,9.10742]
[1744369019023,8.49845975,118.73,118.7,9.10742]
[1744369019628,8.4281,118.72,118.7,9.10742]
[1744369020630,16.92625975,118.73,118.7,9.10742]
[1744369022729,16.92625975,118.73,118.71,8.4286]
[1744369023027,16.92625975,118.73,118.7,0.67832]
[1744369023428,8.4278,118.73,118.7,0.67832]
[1744369023727,8.49845975,118.73,118.7,0.67832]
[1744369023927,8.49845975,118.73,118.71,8.4287]
[1744369024326,16.92615975,118.73,118.7,0.67832]
[1744369024829,16.92615975,118.73,118.7,9.10752]
[1744369026727,0.06355811,118.74,118.7,9.17677975]
[1744369027029,0.06355811,118.74,118.71,8.49845975]
[1744369027229,0.06355811,118.74,118.72,8.4277]
[1744369027529,0.06355811,118.74,118.72,8.48936011]
[1744369028531,8.49035811,118.74,118.72,8.48936011]
[1744369028722,8.49845975,118.73,118.72,0.06166011]
[1744369029133,16.92575975,118.73,118.72,0.06166011]
[1744369032630,8.4287,118.71,118.7,0.67832]
[1744369032831,45.29845975,118.71,118.63,8.49845975]
[1744369033032,8.49845975,118.68,118.65,8.4326]
[1744369033231,16.92935975,118.68,118.65,8.4326]
[1744369033427,8.4309,118.68,118.65,16.93105975]
[1744369033627,8.4309,118.68,118.65,8.4326]
[1744369033828,0.06196141,118.68,118.66,8.4321]
[1744369034232,8.49286141,118.68,118.65,8.49225102]
[1744369036537,0.06196141,118.68,118.66,8.4321]
[1744369037140,8.4317,118.67,118.65,0.05965102]
[1744369037331,0.06196141,118.68,118.65,0.05965102]
[1744369037837,8.49316141,118.68,118.65,8.49235102]
[1744369039135,16.99162116,118.68,118.65,8.49235102]
[1744369039338,8.4317,118.67,118.65,0.05965102]
[1744369039639,45.28042116,118.68,118.65,0.05965102]
[1744369039938,8.4318,118.67,118.65,8.49235102]
[1744369041233,36.78196141,118.68,118.65,0.05965102]
[1744369041438,36.78196141,118.68,118.65,8.55811077]
[1744369041638,36.78196141,118.68,118.65,0.05965102]
[1744369042139,45.21306141,118.68,118.65,8.49195102]
[1744369042337,45.28042116,118.68,118.65,8.49195102]
[1744369042845,8.4318,118.67,118.65,8.49195102]
[1744369044740,45.21316141,118.68,118.66,8.4323]
[1744369045143,36.78196141,118.68,118.65,0.05965102]
[1744369045938,45.21306141,118.68,118.66,8.4323]
[1744369047443,8.4316,118.67,118.65,8.49225102]
[1744369048342,45.21326141,118.68,118.65,8.49225102]
[1744369048541,45.21326141,118.68,118.66,8.4322]
[1744369048936,36.78196141,118.68,118.66,8.4322]
[1744369049442,45.21306141,118.68,118.66,8.4322]
[1744369049943,0.06196141,118.68,118.67,8.4316]
[1744369050343,0.06196141,118.68,118.67,16.93005975]
[1744369050539,36.72,118.72,118.7,8.429]
[1744369051543,36.78208669,118.72,118.7,8.48628899]
[1744369053138,45.21008669,118.72,118.7,0.05728899]
[1744369053444,53.70854644,118.72,118.7,0.05728899]
[1744369055342,53.70854644,118.72,118.7,8.48648899]
[1744369055544,45.21008669,118.72,118.7,8.48648899]
[1744369057348,36.78208669,118.72,118.71,8.4287]
[1744369059250,0.06208669,118.72,118.71,8.4287]
[1744369059549,0.06208669,118.72,118.71,16.92715975]
[1744369061640,0.06208669,118.72,118.71,8.4287]
[1744369063154,8.56054644,118.72,118.7,0.05728899]
[1744369063951,0.06208669,118.72,118.7,0.05728899]
[1744369065053,8.49845975,118.71,118.7,0.05728899]
[1744369066448,16.92715975,118.71,118.7,0.05728899]
[1744369066850,53.68894644,118.72,118.7,0.05728899]
[1744369067150,36.76208669,118.72,118.7,0.05728899]
[1744369067551,45.19048669,118.72,118.7,8.48638899]
[1744369068153,45.19048669,118.72,118.7,0.05728899]
[1744369069457,53.68894644,118.72,118.7,0.05728899]
[1744369070158,8.4287,118.71,118.7,0.05728899]
[1744369071655,45.19038669,118.72,118.7,0.05728899]
[1744369073756,8.49038669,118.72,118.7,0.05728899]
[1744369073954,8.49038669,118.72,118.7,8.48638899]
[1744369075354,8.49038669,118.72,118.7,0.05728899]
[1744369076354,8.49038669,118.72,118.7,8.48658899]
[1744369080062,8.4287,118.71,118.7,0.05728899]
[1744369081759,16.98894644,118.72,118.7,0.05728899]
[1744369081959,8.49048669,118.72,118.7,0.05728899]
[1744369082265,0.06208669,118.72,118.7,8.48668899]
[1744369082860,0.06208669,118.72,118.71,8.4287]
[1744369083553,0.06208669,118.72,118.7,8.55574874]
[1744369083950,0.06208669,118.72,118.71,8.4287]
[1744369085162,0.06208669,118.72,118.7,16.98474874]
[1744369085363,0.06208669,118.72,118.7,8.48628899]
[1744369085760,0.06208669,118.72,118.7,0.05728899]
[1744369086065,8.56054644,118.72,118.7,0.05728899]
[1744369086565,16.98914644,118.72,118.7,0.05728899]
[1744369087163,8.49845975,118.71,118.65,36.7]
[1744369087359,8.49845975,118.69,118.62,704.22]
[1744369087567,8.4319,118.67,118.64,8.4334]
[1744369087867,16.93035975,118.67,118.64,8.4334]
[1744369088466,16.99135822,118.67,118.64,8.48815579]
[1744369089962,8.49845975,118.66,118.64,0.05475579]
[1744369090156,8.49845975,118.65,118.59,56.86219041]
[1744369090358,8.49845975,118.63,118.59,8.49845975]
[1744369090559,8.4354,118.62,118.59,8.437]
[1744369090766,8.4354,118.62,118.58,8.49845975]
[1744369091069,8.4354,118.62,118.59,8.4371]
[1744369091364,0.05935853,118.61,118.59,16.99877332]
[1744369092769,8.49515853,118.61,118.59,8.50031357]
[1744369092964,0.05935853,118.61,118.59,8.50031357]
[1744369093568,0.05935853,118.61,118.6,8.4365]
[1744369093769,0.05935853,118.61,118.6,16.93495975]
[1744369094465,8.49845975,118.67,118.6,8.49845975]
[1744369094664,8.4321,118.67,118.63,8.49845975]
[1744369095668,0.0596576,118.66,118.64,8.48679151]
[1744369095863,8.4921576,118.66,118.64,8.48679151]
[1744369097470,0.0596576,118.66,118.64,8.48679151]
[1744369097861,8.4920576,118.66,118.64,8.48679151]
[1744369098671,0.0596576,118.66,118.64,8.48679151]
[1744369099572,0.0596576,118.66,118.65,8.433]
[1744369099766,0.0596576,118.66,118.64,0.05369151]
[1744369100167,8.4919576,118.66,118.64,8.48699151]
[1744369100470,0.0596576,118.66,118.64,0.05369151]
[1744369100969,0.0596576,118.66,118.65,8.433]
[1744369107780,0.0596576,118.66,118.65,16.93145975]
[1744369107977,667.5,118.71,118.68,8.4309]
[1744369108181,667.5,118.71,118.68,16.92935975]
[1744369108382,675.9294,118.71,118.68,16.92935975]
[1744369108977,675.99293369,118.71,118.68,16.99302952]
[1744369109481,8.4295,118.7,118.68,16.99302952]
[1744369109674,8.49845975,118.69,118.68,0.06366977]
[1744369110087,16.92855975,118.69,118.68,0.06366977]
[1744369112887,53.46855975,118.69,118.68,0.06366977]
[1744369114195,8.4316,118.67,118.63,36.56]
[1744369114391,8.49845975,118.68,118.63,45.05845975]
[1744369114688,8.49845975,118.68,118.65,8.4327]
[1744369114888,8.4312,118.68,118.65,8.4327]
[1744369115195,8.4312,118.68,118.66,8.4322]
[1744369115390,0.06438695,118.68,118.66,8.4322]
[1744369116193,0.06438695,118.68,118.65,8.49673803]
[1744369116391,8.5628467,118.68,118.65,8.49673803]
[1744369116686,0.06438695,118.68,118.66,8.432]
[1744369117292,8.49538695,118.68,118.66,8.432]
[1744369117492,8.49538695,118.68,118.65,8.49653803]
[1744369119188,8.49538695,118.68,118.66,8.4321]
[1744369119588,8.49538695,118.68,118.65,8.49663803]
[1744369120993,8.4316,118.67,118.65,8.49663803]
[1744369121295,0.06438695,118.68,118.65,8.49663803]
[1744369121591,8.49598695,118.68,118.65,8.49663803]
[1744369121887,8.5628467,118.68,118.65,8.49663803]
[1744369122494,0.06438695,118.68,118.65,8.49663803]
[1744369122696,0.06438695,118.68,118.66,16.93075975]
[1744369122891,0.06438695,118.68,118.67,8.49845975]
[1744369124295,0.06438695,118.68,118.67,16.93005975]
[1744369127096,8.4284,118.72,118.67,8.49845975]
[1744369127291,8.4284,118.72,118.69,8.49845975]
[1744369127595,8.4274,118.73,118.69,8.49845975]
[1744369127900,8.4274,118.73,118.71,8.49845975]
[1744369128194,8.48803578,118.73,118.71,0.0592229]
[1744369128397,8.428,118.72,118.71,0.0592229]
[1744369129297,16.92645975,118.72,118.71,0.0592229]
[1744369130797,8.49845975,118.72,118.63,62.0]
[1744369131097,8.49845975,118.7,118.66,8.49845975]
[1744369131494,8.4305,118.69,118.66,16.93035975]
[1744369131998,8.49231694,118.69,118.66,16.99099532]
[1744369132300,8.49231694,118.69,118.67,8.4314]
[1744369132999,0.06181694,118.69,118.67,8.4314]
[1744369133490,8.49221694,118.69,118.67,8.4314]
[1744369133694,8.49221694,118.69,118.66,16.99089532]
[1744369133903,0.06181694,118.69,118.66,16.99089532]
[1744369134100,8.49231694,118.69,118.66,16.99089532]
[1744369134997,8.4312,118.68,118.66,0.06063557]
[1744369135206,16.92965975,118.68,118.66,0.06063557]
[1744369136495,8.4316,118.67,118.66,0.06063557]
[1744369146105,8.4311,118.68,118.66,8.49293557]
[1744369147008,8.49241694,118.69,118.66,8.49293557]
[1744369147304,0.06181694,118.69,118.66,8.49293557]
[1744369147505,8.431,118.68,118.66,8.49293557]
[1744369147705,0.06181694,118.69,118.66,8.49293557]
[1744369148307,8.49241694,118.69,118.66,8.49293557]
[1744369148807,0.06181694,118.69,118.67,8.4315]
[1744369150416,8.49201694,118.69,118.67,8.4315]
[1744369151503,0.06181694,118.69,118.67,8.4315]
[1744369151711,0.06181694,118.69,118.68,8.49845975]
[1744369152109,0.06181694,118.69,118.68,16.92935975]
[1744369154709,0.06181694,118.69,118.68,8.4309]
[1744369154914,0.06181694,118.69,118.67,8.4312]
[1744369155413,8.49231694,118.69,118.67,8.4312]
[1744369158715,8.56027669,118.69,118.66,8.49243557]
[1744369159020,8.49845975,118.68,118.66,0.06063557]
[1744369160012,16.92965975,118.68,118.66,8.49273557]
[1744369161117,53.37087669,118.69,118.66,8.49273557]
[1744369161619,8.431,118.68,118.66,8.49273557]
[1744369164818,8.49845975,118.67,118.61,1.46659081]
[1744369165119,8.49845975,118.65,118.6,8.49845975]
[1744369165317,44.87845975,118.66,118.61,8.49845975]
[1744369165519,44.87845975,118.66,118.62,8.49845975]
[1744369165708,8.4333,118.65,118.62,8.4348]
[1744369165911,8.48697946,118.65,118.62,8.49039319]
[1744369166110,16.98543921,118.65,118.62,8.49039319]
[1744369166924,16.98543921,118.65,118.63,8.4343]
[1744369168220,8.4338,118.64,118.62,0.05559319]
[1744369168417,8.49845975,118.64,118.62,0.05559319]
[1744369168925,16.93285975,118.63,118.62,0.05559319]
[1744369171727,53.33285975,118.63,118.62,0.05559319]
[1744369176222,36.4,118.63,118.62,0.05559319]
[1744369176428,8.4341,118.64,118.62,0.05559319]
[1744369177329,8.4341,118.64,118.63,8.4344]
[1744369177527,8.4341,118.64,118.62,0.05559319]
[1744369177729,16.93285975,118.63,118.62,0.05559319]
[1744369178529,8.49845975,118.63,118.6,8.4364]
[1744369178730,8.49845975,118.62,118.57,8.49845975]
[1744369178932,8.4358,118.61,118.57,8.49845975]
[1744369179126,8.4358,118.61,118.58,8.49845975]
[1744369179326,8.49845975,118.63,118.58,8.49845975]
[1744369179527,0.05730282,118.61,118.59,8.49845975]
[1744369180129,0.05730282,118.61,118.6,8.436]
[1744369180328,0.05730282,118.61,118.6,16.93445975]
[1744369180527,8.49845975,118.65,118.6,8.49845975]
[1744369180727,8.49845975,118.65,118.61,8.49845975]
[1744369181023,8.49845975,118.65,118.6,8.49845975]
[1744369181229,8.4344,118.63,118.61,8.4356]
[1744369181425,8.49845975,118.64,118.61,8.4356]
[1744369181632,0.0623325,118.63,118.61,0.06169786]
[1744369183023,0.0623325,118.63,118.62,8.4351]
[1744369185035,8.4967325,118.63,118.61,0.06169786]
[1744369185435,0.0623325,118.63,118.61,0.06169786]
[1744369185734,8.56079225,118.63,118.61,0.06169786]
[1744369186236,8.4351,118.62,118.61,0.06169786]
[1744369192944,16.93355975,118.62,118.61,0.06169786]
[1744369193139,8.4351,118.62,118.61,0.06169786]
[1744369196445,8.4971325,118.63,118.61,8.49719786]
[1744369197749,0.0623325,118.63,118.62,16.93355975]
[1744369197955,46.62453275,118.7,118.62,10.78245975]
[1744369198146,46.62453275,118.7,118.68,8.49845975]
[1744369198452,46.62453275,118.7,118.69,16.92855975]
[1744369199045,46.62453275,118.7,118.69,8.4301]
[1744369200450,55.1229925,118.7,118.68,0.05953778]
[1744369200651,36.3,118.69,118.68,0.05953778]
[1744369200849,36.3,118.69,118.68,8.49043778]
[1744369201046,44.79845975,118.69,118.68,0.05953778]
[1744369201251,44.79845975,118.69,118.62,10.78245975]
[1744369201452,8.49845975,118.66,118.62,2.284]
[1744369201652,36.3,118.65,118.62,2.284]
[1744369201958,36.3,118.65,118.64,8.4336]
[1744369203853,36.3,118.65,118.63,0.05654242]
[1744369204057,0.05966119,118.66,118.63,8.55500217]
[1744369204258,36.35966119,118.66,118.64,8.49845975]
[1744369204556,36.35966119,118.66,118.65,8.49845975]
[1744369204752,0.05966119,118.66,118.65,8.49845975]
[1744369205250,0.05966119,118.66,118.65,16.93145975]
[1744369206360,36.3,118.69,118.68,8.4309]
[1744369207161,36.3,118.69,118.68,16.92935975]
[1744369207359,36.3,118.69,118.68,8.4309]
[1744369215561,0.06009193,118.7,118.69,8.4301]
[1744369215863,36.36009193,118.7,118.69,8.4301]
[1744369216863,36.36009193,118.7,118.68,8.4304]
[1744369217763,36.36009193,118.7,118.67,8.48533697]
[1744369217965,36.36009193,118.7,118.67,0.05423697]
[1744369218265,44.78979193,118.7,118.68,8.4308]
[1744369218864,36.36009193,118.7,118.69,8.4301]
[1744369219668,36.36009193,118.7,118.68,8.4304]
[1744369219958,44.78949193,118.7,118.68,8.4304]
[1744369220365,36.36009193,118.7,118.68,8.4304]
[1744369221168,44.78969193,118.7,118.68,8.4304]
[1744369221468,36.36009193,118.7,118.68,8.4304]
[1744369221966,36.28009193,118.7,118.68,8.4304]
[1744369222467,36.28009193,118.7,118.69,8.4301]
[1744369223574,0.06009193,118.7,118.69,8.4301]
[1744369223873,36.28009193,118.7,118.69,8.4301]
[1744369224467,0.06009193,118.7,118.69,8.4301]
[1744369226172,8.48949193,118.7,118.67,0.05423697]
[1744369226672,8.48949193,118.7,118.67,8.48533697]
[1744369226875,8.48949193,118.7,118.67,0.05423697]
[1744369227273,8.48949193,118.7,118.68,8.4308]
[1744369227771,8.4301,118.69,118.67,8.48533697]
[1744369229177,8.4309,118.68,118.67,0.05423697]
[1744369229372,44.6509,118.68,118.67,0.05423697]
[1744369229577,44.73325138,118.68,118.62,8.51325138]
[1744369229777,8.4327,118.66,118.64,8.4334]
[1744369230078,36.22,118.65,118.64,8.4334]
[1744369230282,36.22,118.65,118.62,8.51325138]
[1744369230483,44.653,118.65,118.63,8.4339]
[1744369230679,44.71283149,118.65,118.63,8.4339]
[1744369230879,44.79308287,118.65,118.62,0.05418653]
[1744369231179,8.4344,118.63,118.62,0.05418653]
[1744369231482,8.51325138,118.64,118.62,0.05418653]
[1744369231678,36.27983149,118.65,118.62,8.56743791]
[1744369232179,36.27983149,118.65,118.63,8.434]
[1744369233283,0.05983149,118.65,118.64,8.4337]
[1744369233482,0.05983149,118.65,118.64,16.94695138]
[1744369234478,8.51325138,118.71,118.67,8.4311]
[1744369234989,8.43,118.7,118.67,8.4311]
[1744369235191,40.5456,118.72,118.69,8.4301]
[1744369235577,8.4288,118.71,118.69,0.05344998]
[1744369236189,40.60256816,118.72,118.69,0.05344998]
[1744369236683,49.03086816,118.72,118.69,8.48314998]
[1744369236879,12.81086816,118.72,118.69,8.48314998]
[1744369237387,12.81086816,118.72,118.7,8.4294]
[1744369237590,12.81086816,118.72,118.69,0.05344998]
[1744369237790,12.81086816,118.72,118.69,8.56670136]
[1744369237990,12.81086816,118.72,118.69,16.99640136]
[1744369238191,12.81086816,118.72,118.69,8.48314998]
[1744369238391,36.22,118.71,118.69,8.48314998]
[1744369238590,8.4288,118.71,118.69,0.05344998]
[1744369238791,4.38256816,118.72,118.69,0.05344998]
[1744369238989,12.81096816,118.72,118.69,0.05344998]
[1744369239190,12.81096816,118.72,118.69,8.48324998]
[1744369239691,0.05696816,118.72,118.71,8.4287]
[1744369239887,0.05696816,118.72,118.69,8.56670136]
[1744369240082,0.05696816,118.72,118.7,8.4289]
[1744369240287,0.05696816,118.72,118.69,8.56670136]
[1744369240481,0.05696816,118.72,118.71,8.51325138]
[1744369240692,2.1341,118.78,118.75,8.4252]
[1744369240881,10.64735138,118.78,118.74,8.51325138]
[1744369241082,8.4258,118.76,118.73,8.427]
[1744369241292,36.22,118.76,118.7,6.6328]
[1744369241792,8.4855746,118.74,118.72,0.06232666]
[1744369243188,8.4273,118.73,118.72,0.06232666]
[1744369243395,49.50775763,118.73,118.65,4.4273]
[1744369243590,56.28695763,118.73,118.65,4.4273]
[1744369243790,56.28695763,118.73,118.67,8.4311]
[1744369244194,8.4317,118.67,118.64,8.4331]
[1744369244393,8.49612675,118.67,118.64,8.4929968]
[1744369245400,8.49612675,118.67,118.64,0.0598968]
[1744369245401,8.4323,118.66,118.64,0.0598968]
[1744369245695,36.22,118.65,118.64,0.0598968]
[1744369245889,44.653,118.65,118.64,0.0598968]
[1744369246291,36.22,118.65,118.64,0.0598968]
[1744369246792,44.653,118.65,118.64,0.0598968]
[1744369250299,8.4353,118.62,118.57,19.18217399]
[1744369251200,44.6153,118.62,118.57,19.18217399]
[1744369251501,0.06236618,118.61,118.59,13.28775763]
[1744369252094,0.06236618,118.61,118.6,8.4365]
[1744369252298,0.06236618,118.61,118.58,0.06398439]
[1744369253806,8.49876618,118.61,118.58,8.50168439]
[1744369254307,0.06236618,118.61,118.58,8.50168439]
[1744369254706,8.4368,118.6,118.58,8.50168439]
[1744369255808,8.49856618,118.61,118.58,8.50168439]
[1744369256706,0.06236618,118.61,118.58,8.50168439]
[1744369257009,8.4366,118.6,118.58,8.50168439]
[1744369257305,8.49856618,118.61,118.58,8.50168439]
[1744369257511,0.06236618,118.61,118.58,0.06398439]
[1744369258211,0.06236618,118.61,118.59,8.4368]
[1744369258409,0.06236618,118.61,118.58,0.06398439]
[1744369259312,0.06236618,118.61,118.59,8.4373]
[1744369261322,2.2585,118.67,118.59,13.28775763]
[1744369261621,36.18,118.66,118.59,13.28775763]
[1744369262023,8.4344,118.64,118.61,8.4355]
[1744369262621,8.49601214,118.64,118.61,8.49526849]
[1744369262920,8.4344,118.63,118.61,8.49526849]
[1744369263322,0.06161214,118.64,118.61,8.49526849]
[1744369263722,36.18,118.63,118.61,0.05976849]
[1744369264118,8.4367,118.6,118.55,15.45015763]
[1744369264327,44.6167,118.6,118.57,8.4384]
[1744369264627,8.4367,118.6,118.55,15.45015763]
[1744369264817,8.4367,118.6,118.58,8.4376]
[1744369265020,4.4659,118.62,118.55,15.45015763]
[1744369265222,0.05373186,118.6,118.58,0.05760411]
[1744369265720,0.05373186,118.6,118.59,8.4373]
[1744369267217,8.49023186,118.6,118.58,8.49530411]
[1744369267418,8.49023186,118.6,118.58,0.05760411]
[1744369268525,8.49023186,118.6,118.58,8.49530411]
[1744369269021,0.05373186,118.6,118.59,8.4373]
[1744369270620,8.49043186,118.6,118.58,8.49520411]
[1744369270929,44.69043186,118.6,118.58,8.49520411]
[1744369272324,36.25373186,118.6,118.59,8.4373]
[1744369272521,36.25373186,118.6,118.58,0.05760411]
[1744369272725,44.69023186,118.6,118.58,8.49520411]
[1744369273821,36.25373186,118.6,118.59,8.4373]
[1744369274017,36.2,118.63,118.59,13.28775763]
[1744369274216,2.126,118.65,118.59,13.28775763]
[1744369274420,46.7594,118.65,118.6,62.0]
[1744369274622,44.6334,118.65,118.6,62.0]
[1744369274826,44.6334,118.65,118.59,13.28775763]
[1744369275025,44.6334,118.65,118.63,8.434]
[1744369275319,44.6962824,118.65,118.63,8.434]
[1744369276029,36.2628824,118.65,118.63,8.434]
[1744369276628,44.6959824,118.65,118.63,8.434]
[1744369276829,36.2628824,118.65,118.63,8.434]
[1744369277932,0.0628824,118.65,118.64,8.4337]
[1744369279837,0.0628824,118.65,118.63,8.434]
[1744369280130,8.4961824,118.65,118.63,8.434]
[1744369280530,36.2028824,118.65,118.61,0.05701908]
[1744369280733,8.4338,118.64,118.61,0.05701908]
[1744369281130,8.4338,118.64,118.61,8.49241908]
[1744369281332,36.2028824,118.65,118.61,8.49241908]
[1744369281834,36.2028824,118.65,118.62,8.4347]
[1744369282034,0.0628824,118.65,118.61,0.05701908]
[1744369282437,0.0628824,118.65,118.62,8.4348]
[1744369282637,8.4339,118.64,118.62,8.4348]
[1744369284134,8.4962824,118.65,118.63,8.4343]
[1744369284732,0.0628824,118.65,118.63,8.4343]
[1744369286230,8.4959824,118.65,118.63,8.4343]
[1744369287136,44.6359824,118.65,118.63,8.4343]
[1744369289243,36.2028824,118.65,118.64,8.4337]
[1744369289937,44.6358824,118.65,118.63,8.434]
[1744369290242,8.4958824,118.65,118.63,8.434]
[1744369290640,0.0628824,118.65,118.64,8.4337]
[1744369297246,8.4958824,118.65,118.63,8.434]
[1744369298247,0.0628824,118.65,118.64,8.4337]
[1744369298547,703.96,118.7,118.64,8.51532408]
[1744369298743,703.96,118.7,118.66,8.51532408]
[1744369299045,712.3898,118.7,118.68,16.94582408]
[1744369299246,712.3898,118.7,118.68,8.4305]
[1744369299548,712.44806276,118.7,118.68,8.49066097]
[1744369299942,0.05826276,118.7,118.69,8.4301]
[1744369300244,0.05826276,118.7,118.69,16.94542408]
[1744369301244,0.05826276,118.7,118.69,21.71823921]
[1744369303549,36.14,118.73,118.72,8.428]
[1744369303745,36.12,118.75,118.72,8.428]
[1744369304249,687.56483921,118.77,118.72,8.428]
[1744369304550,36.12,118.76,118.72,8.428]
[1744369304750,36.12,118.75,118.73,0.05596273]
[1744369305152,0.05439277,118.76,118.73,0.05596273]